Cogmind - Beta 11.1 @@@ ROGUE MODE // 2022.05.12 @ 07:32:11 Player: Haldron Result: Self-destructed Performance ------------- Evolutions (5) 2500 Regions Visited (16) 3200 Robots Destroyed (45) 225 Value Destroyed (2647) 2647 Prototype IDs (6) 120 Alien Tech Used (0) 0 Bonus (2381) 2381 TOTAL SCORE: 11073 Bonus ------- High Alert Combat Kills 75 Follower Combat Kills 1230 Entered Garrisons 400 Used RIF Installer 1000 Aligned with FarCom 300 Friendly Fire -624 Cogmind --------- Core Integrity 469/1000 Matter 300/300 Energy 150/150 System Corruption 7% Temperature Cool (0) Movement Hovering (46) Location -5/Factory Parts ------- > --- POWER (1) -------- Micro Fission Core > --- PROPULSION (2) --- Antigrav System Linear Gravjet > --- UTILITY (12) ----- Enhanced Optical Array Improved Signal Interpreter Advanced Terrain Scan Processor Hacking Suite Improved Hacking Suite Improved System Shield Relay Coupler [NC] (30) Relay Coupler [NC] (6) Relay Coupler [Grunt] (5) Relay Coupler [Specialist] (11) Relay Coupler [Hunter] (9) > --- WEAPON (2) ------- Improved Remote Datajack Kinetic Spear > --- INVENTORY (5) ---- Field Propulsion Drive Improved Grenade Launcher Improved Remote Datajack Advanced Remote Datajack Advanced Remote Datajack Peak State ------------ > --- POWER ------------ Micro Fission Core > --- PROPULSION ------- Carbon-fiber Leg Flexi-carbon Leg > --- UTILITY ---------- Advanced Heat Sink Advanced Heat Sink Enhanced Optical Array Advanced Terrain Scan Processor Improved Medium Armor Plating Advanced Thermal Shield Hacking Suite Hacking Suite Improved Hacking Suite System Shield System Shield Improved System Shield > --- WEAPON ----------- KE Penetrator Kinetic Spear > --- INVENTORY -------- Advanced Terrain Scanner Relay Coupler [Grunt] Relay Coupler [Hunter] Improved Grenade Launcher Improved Remote Datajack [Rating: 81] Favorites ----------- Power Micro Fission Core Engine Light Ion Engine Power Core Micro Fission Core Propulsion Xenon Bombardment Thruster Treads Light Treads Leg Carbon-fiber Leg Wheel Wheel Hover Unit Linear Gravjet Flight Unit Xenon Bombardment Thruster Utility Hacking Suite Device Advanced Terrain Scanner Storage Large Storage Unit Processor Advanced Terrain Scan Processor Hackware Hacking Suite Protection Improved Medium Armor Plating Weapon Kinetic Spear Energy Gun EM Pulse Gun Ballistic Gun Assault Rifle Launcher Improved Grenade Launcher Special Weapon Improved Remote Datajack Impact Weapon Heavy Mace Slashing Weapon Axe Piercing Weapon Kinetic Spear Special Melee Weapon Improved Datajack Build | -11 -10 -10 -10 -9 -8 -7 -7 -7 -7 -7 -6 -5 -5 -5 -5 -5 ------- Run | Scr Mat Min Exi Min Mat Fac Was Fac Gar Fac Fac Fac Was Fac Gar Fac Slots Evolved 10 | . . . . . 4 2 . . . . 2 2 . . . . Power . | . . . . . . . . . . . . . . . . . Propulsion . | . . . . . . . . . . . . . . . . . Utility 10 | . . . . . 4 2 . . . . 2 2 . . . . Weapon . | . . . . . . . . . . . . . . . . . Parts Attached 160 | 8 7 . 4 . 8 1 4 . 6 23 4 29 . 12 40 14 Power 10 | 2 1 . . . . . 1 . . 2 . 1 . 1 1 1 Engine 4 | 2 1 . . . . . 1 . . . . . . . . . Core 6 | . . . . . . . . . . 2 . 1 . 1 1 1 Reactor . | . . . . . . . . . . . . . . . . . Propulsion 33 | 2 1 . . . . . 1 . . 7 . 6 . 1 12 3 Treads 3 | 1 . . . . . . . . . 2 . . . . . . Leg 6 | . . . . . . . . . . . . . . . 6 . Wheel 3 | 1 1 . . . . . 1 . . . . . . . . . Hover 2 | . . . . . . . . . . . . . . . . 2 Flight 19 | . . . . . . . . . . 5 . 6 . 1 6 1 Utility 69 | 2 2 . 3 . 5 1 1 . 1 10 3 12 . 10 16 3 Device 20 | 1 . . 2 . 4 . . . 1 . . 6 . 2 4 . Storage 7 | 1 2 . . . 1 . . . . . . . . 1 2 . Processor 9 | . . . 1 . . . . . . 3 . 2 . 2 1 . Hackware 31 | . . . . . . 1 1 . . 7 3 4 . 5 7 3 Protection 2 | . . . . . . . . . . . . . . . 2 . Artifact . | . . . . . . . . . . . . . . . . . Weapon 48 | 2 3 . 1 . 3 . 1 . 5 4 1 10 . . 11 7 Energy Gun 4 | 1 1 . . . . . . . 2 . . . . . . . Energy Cannon . | . . . . . . . . . . . . . . . . . Ballistic Gun 7 | 1 2 . 1 . 1 . . . 1 . . . . . 1 . Ballistic Cannon . | . . . . . . . . . . . . . . . . . Launcher 4 | . . . . . . . 1 . . . . . . . 1 2 Special Weapon 9 | . . . . . . . . . . . . 1 . . 5 3 Impact Weapon 7 | . . . . . 2 . . . 2 3 . . . . . . Slashing Weapon 7 | . . . . . . . . . . . 1 6 . . . . Piercing Weapon 8 | . . . . . . . . . . . . 2 . . 4 2 Special Melee Weapon 2 | . . . . . . . . . . 1 . 1 . . . . Unidentified Prototypes 5 | . . . 2 . 1 . . . . 1 . 1 . . . . Parts Lost 23 | . 3 . . . . . . . 2 3 . 7 . . 6 2 Power 2 | . 1 . . . . . . . 1 . . . . . . . Propulsion 5 | . 1 . . . . . . . . . . 1 . . 2 1 Utility 13 | . . . . . . . . . 1 3 . 4 . . 4 1 Weapon 3 | . 1 . . . . . . . . . . 2 . . . . Highest Loss Streak 3 | . 2 . . . . . . . 1 1 . 3 . . 2 1 To Critical Strikes . | . . . . . . . . . . . . . . . . . Average Slot Usage (%) 90 | . 100 100 100 100 95 85 99 100 89 75 99 92 94 91 88 87 Engine 2 | . 14 14 14 14 9 7 7 7 3 . . . . . . . Core 3 | . . . . . . . . . . 6 6 4 5 5 4 5 Treads 2 | . 14 14 14 14 9 7 . . . 1 . . . . . . Leg 3 | . . . . . . . . . . . . . . . 8 . Wheel 3 | . 14 14 14 14 9 7 14 15 15 . . . . . . . Flight 4 | . . . . . . . . . . 10 13 10 11 11 1 8 Device 8 | . 14 14 5 . 24 23 23 23 17 1 . 3 11 10 4 . Storage 4 | . 14 14 14 14 16 15 15 15 15 . . . . . 1 . Processor 12 | . . . 8 14 9 7 7 7 7 12 20 22 11 10 11 17 Hackware 28 | . . . . . . 1 14 15 15 30 45 38 47 44 36 41 Protection 1 | . . . . . . . . . . . . . . . 3 . Ballistic Gun 4 | . 20 28 28 28 11 7 5 . 1 . . . . . . . Special Weapon 1 | . . . . . . . . . . . . . . . 3 4 Impact Weapon 1 | . . . . . 6 7 7 7 5 5 4 . . . . . Piercing Weapon 2 | . . . . . . . . . . . . . 5 5 4 4 Naked Turns . | . . . . . . . . . . . . . . . . . Heaviest Build 81 | 15 28 28 28 27 75 75 79 79 79 81 10 13 11 12 26 15 Greatest Support 35 | 20 20 10 10 10 10 10 20 20 20 20 12 14 12 12 35 20 Greatest Overweight (x) 7 | . 2 2 2 2 7 7 7 3 3 4 . 2 . . 3 1 Average Overweight (x) . | . 1 2 2 2 5 7 3 3 3 . . . . . . . Largest Inventory Capacity 20 | 8 15 15 15 15 20 20 20 20 20 20 5 5 5 5 5 5 Average Capacity 8 | 7 11 15 15 15 19 20 20 20 20 5 5 5 5 5 5 5 Most Carried 20 | 4 15 15 15 15 17 18 18 18 20 19 5 5 5 5 5 5 Average Carried 7 | 3 7 14 15 15 15 17 18 18 18 4 4 4 5 4 4 4 Final Capacity 20 | 8 15 15 15 15 20 20 20 20 20 5 5 5 5 5 5 5 Final Carried 19 | 4 15 15 15 15 17 18 18 18 19 5 5 5 5 4 5 5 Class Distribution -------------------- 20% | Hacker-Mutant 15% | Commander-Mutant 12% | Mutant 11% | Wizard-Scout 10% | Wizard-Mutant 9% | Assassin 4% | Hacker-Assassin 4% | Wizard-Ninja Dominant Class ---------------- Mutant | -10/Materials Mutant | -10/Mines Mutant | -10/Exiles Mutant | -9/Mines Assassin | -8/Materials Assassin | -7/Factory Hacker-Assassin | -7/Waste Hacker-Assassin | -7/Factory Hacker-Assassin | -7/Garrison Hacker-Mutant | -7/Factory Hacker-Mutant | -6/Factory Hacker-Mutant | -5/Factory Wizard-Ninja | -5/Waste Wizard-Scout | -5/Factory Wizard-Mutant | -5/Garrison Commander-Mutant | -5/Factory Resources | -11 -10 -10 -10 -9 -8 -7 -7 -7 -7 -7 -6 -5 -5 -5 -5 -5 ----------- Run | Scr Mat Min Exi Min Mat Fac Was Fac Gar Fac Fac Fac Was Fac Gar Fac Matter Collected 3094 | 361 115 79 . . 125 . . . 261 142 46 309 . 210 1124 322 Remotely . | . . . . . . . . . . . . . . . . . Salvage Created 1673 | 170 322 16 . . 125 . . . 39 48 . 317 . . 266 370 Parts 92 | 11 31 . . . 4 . . . . . . 16 . . 9 21 Haulers Intercepted 1 | . 1 . . . . . . . . . . . . . . . Recyclers Shooed 1 | . . . . . . . . . . . . 1 . . . . Parts Field Recycled . | . . . . . . . . . . . . . . . . . Retrieved Matter . | . . . . . . . . . . . . . . . . . Parts Self-Destructed . | . . . . . . . . . . . . . . . . . Prevented . | . . . . . . . . . . . . . . . . . Kills | -11 -10 -10 -10 -9 -8 -7 -7 -7 -7 -7 -6 -5 -5 -5 -5 -5 ------- Run | Scr Mat Min Exi Min Mat Fac Was Fac Gar Fac Fac Fac Was Fac Gar Fac Combat Hostiles Destroyed 20 | . 10 1 . . 1 . . . 2 . . . . . 3 3 Melee 4 | . . . . . . . . . . . . . . . 3 1 Guns 10 | . 8 1 . . . . . . 1 . . . . . . . AOE 4 | . 2 . . . . . . . . . . . . . . 2 Classes Destroyed 14 | 3 3 1 . . 3 . . . 1 . . . . . . 3 Worker 6 | 2 . . . . . . . . . . . . . . . 4 Tunneler 2 | 2 . . . . . . . . . . . . . . . . Hauler 1 | . 1 . . . . . . . . . . . . . . . Recycler 4 | 1 . . . . . . . . . . . 2 . . . 1 Operator 3 | . . . . . 1 . . . . 2 . . . . . . Watcher 7 | . . . . . 2 . . . . . . 3 . . 1 1 Swarmer 7 | . 6 . . . . . . . . . . . . . 1 . Saboteur 2 | . . . . . . . . . . . . . . . . 2 Grunt 9 | . 4 . . . . . . . 1 . . . . . 3 1 Brawler 1 | . . . . . . . . . . . . . . . . 1 Protector 1 | . . . . . . . . . . . . . . . . 1 Sentry 1 | . . . . . 1 . . . . . . . . . . . Hunter 1 | . . . . . . . . . 1 . . . . . . . Assembled 1 | . . 1 . . . . . . . . . . . . . . Best Kill Streak 6 | 3 6 1 . . 2 . . . 1 1 . 1 . . 2 3 Combat Bots Only 6 | . 6 1 . . 1 . . . 1 . . . . . 2 2 Max Kills in Single Turn 2 | 1 2 1 . . 1 . . . 1 1 . 1 . . 1 2 Gunslinging . | . . . . . . . . . . . . . . . . . Exploded 2 | . 2 . . . . . . . . . . . . . . 2 Melee 1 | . . . . . . . . . . . . . . . 1 1 Uniques/NPCs Destroyed . | . . . . . . . . . . . . . . . . . Combat | -11 -10 -10 -10 -9 -8 -7 -7 -7 -7 -7 -6 -5 -5 -5 -5 -5 -------- Run | Scr Mat Min Exi Min Mat Fac Was Fac Gar Fac Fac Fac Was Fac Gar Fac Damage Taken 2287 | . 324 79 . . 40 . . . 315 237 . 436 . 19 665 172 Core 758 | . 9 47 . . 14 . . . 60 97 . 221 . 19 254 37 Absorbed by Shields 21 | . . . . . . . . . . . . . . . 21 . Regen/Repaired (Parts) 120 | . . . . . . . . . . 87 . 33 . . . . Core Remaining (%) 90 | 100 . . . 77 97 . . . . 77 100 . . . . . Volleys Fired 142 | 27 30 5 . 2 8 . . . 16 . . 1 . . 40 13 Largest 2 | 1 2 2 . 2 2 . . . 2 . . 1 . . 1 1 Hottest 130 | 20 60 40 . 40 40 . . . 130 . . 7 . . 33 36 Shots Fired 196 | 27 60 10 . 5 13 . . . 27 . . 1 . . 40 13 Gun 153 | 27 60 10 . 5 13 . . . 27 . . . . . 11 . Cannon . | . . . . . . . . . . . . . . . . . Launcher 5 | . . . . . . . . . . . . . . . . 5 Special 38 | . . . . . . . . . . . . 1 . . 29 8 Kinetic 98 | 27 30 10 . 5 13 . . . 2 . . . . . 11 . Thermal 25 | . . . . . . . . . 25 . . . . . . . Explosive 5 | . . . . . . . . . . . . . . . . 5 Electromagnetic 30 | . 30 . . . . . . . . . . . . . . . Robot Hit Streak 8 | 4 8 2 . 3 2 . . . 5 . . 5 . . 4 4 Robot Miss Streak 4 | 4 4 2 . 1 2 . . . 2 . . . . . 3 1 Penetration Max . | . . . . . . . . . . . . . . . . . Secondary Targets 1 | . . 1 . . . . . . . . . . . . . . Max Gunslinging Chain 1 | . . 1 . . . . . . . . . . . . . . Shots Hit Robots 142 | 16 37 4 . 3 8 . . . 14 2 1 12 . . 32 13 Core Hits 65 | 6 15 3 . . 4 . . . 2 . . 4 . . 4 27 Critical Kills . | . . . . . . . . . . . . . . . . . Critical Parts Destroyed 3 | . . . . 1 2 . . . . . . . . . . . Critical Strikes 4 | . . . . 1 2 . . . . . . . . . 1 . Destroy 1 | . . . . 1 . . . . . . . . . . . . Smash 2 | . . . . . 2 . . . . . . . . . . . Impale 1 | . . . . . . . . . . . . . . . 1 . Melee Attacks 331 | . . . . . 11 7 13 . 18 19 5 49 . 46 155 8 Impact 71 | . . . . . 11 7 13 . 18 19 3 . . . . . Slashing 48 | . . . . . . . . . . . 1 47 . . . . Piercing 209 | . . . . . . . . . . . . . . 46 155 8 Sneak Attacks 15 | . . . . . . . . . . 1 1 4 . . 5 4 Combat Hostiles 3 | . . . . . . . . . . . . . . . 3 . Follow-up Attacks . | . . . . . . . . . . . . . . . . . Damage Inflicted 3848 | 197 542 52 . 35 177 . . . 219 150 . 473 . . 557 1446 Guns 1075 | 197 476 52 . 35 73 . . . 219 . . . . . 23 . Cannons . | . . . . . . . . . . . . . . . . . Explosions 1039 | . 66 . . . . . . . . . . . . . . 973 Melee 1718 | . . . . . 104 . . . . 150 . 473 . . 518 473 Ramming 16 | . . . . . . . . . . . . . . . 16 . Kinetic 627 | 197 236 52 . 35 73 . . . 11 . . . . . 23 . Thermal 274 | . 66 . . . . . . . 208 . . . . . . . Explosive 954 | . . . . . . . . . . . . . . . . 954 Electromagnetic 259 | . 240 . . . . . . . . . . . . . . 19 Impact 254 | . . . . . 104 . . . . 150 . . . . . . Slashing 473 | . . . . . . . . . . . . 473 . . . . Piercing 991 | . . . . . . . . . . . . . . . 518 473 Highest Corruption 31 | . 1 1 1 1 . . 31 31 31 31 . 7 3 3 7 7 Average Corruption 7 | . 1 1 1 1 . . 15 31 31 31 . 4 3 3 5 7 Corruption Purged 5 | . . . . . . . . . . . . 5 . . . . Corruption Blocked . | . . . . . . . . . . . . . . . . . Effects 308 | . 3 2 5 2 . . 18 3 21 47 . 27 . 28 128 24 Message Errors 84 | . . . 1 1 . . 5 1 2 16 . 9 . 6 40 3 Matter Fused 83 | . 1 1 2 . . . 3 1 7 13 . 7 . 7 31 10 Heat Flow Errors 35 | . . . . . . . 2 . 2 6 . 3 . 3 17 2 Energy Discharges 34 | . . . 2 . . . 1 . 2 3 . 2 . 6 15 3 Parts Rejected 3 | . . . . . . . 1 . . . . . . . 1 1 Data Loss (minor) 42 | . 2 1 . . . . 3 1 4 5 . 3 . 2 17 4 Data Loss (major) 10 | . . . . . . . . . 1 . . 1 . 4 3 1 Misfires 2 | . . . . 1 . . . . 1 . . . . . . . Alerts 10 | . . . . . . . 2 . 1 1 . 2 . . 4 . Misdirections 4 | . . . . . . . 1 . . 3 . . . . . . Weapon Failures 1 | . . . . . . . . . 1 . . . . . . . Overload Shots . | . . . . . . . . . . . . . . . . . Overflow Damage 387 | . . . . . 104 . . . . 80 . 70 . . 112 21 Projectiles . | . . . . . . . . . . . . . . . . . Explosions 21 | . . . . . . . . . . . . . . . . 21 Melee 366 | . . . . . 104 . . . . 80 . 70 . . 112 . Knockbacks . | . . . . . . . . . . . . . . . . . Impact . | . . . . . . . . . . . . . . . . . Kinetic . | . . . . . . . . . . . . . . . . . Secondary . | . . . . . . . . . . . . . . . . . Self-Inflicted Damage 88 | . . . . . . . . . 77 . . . . . 11 . Shots 1 | . . . . . . . . . 1 . . . . . . . Rammed 2 | . . . . . . . . . . . . . . . 2 . Targets Rammed 2 | . . . . . . . . . . . . . . . 2 . Kicked . | . . . . . . . . . . . . . . . . . Crushed . | . . . . . . . . . . . . . . . . . Highest Temperature 376 | . 48 . . . . . 212 . 376 239 . 245 . 239 269 196 Average Temperature 95 | . 23 . . . . . 94 . 135 104 . 108 . 87 106 91 Received Heat Transfer 387 | . 126 . . . 18 . . . 18 54 . 9 . 27 90 45 Effects 3 | . . . . . . . . . 3 . . . . . . . Shutdowns 1 | . . . . . . . . . 1 . . . . . . . Matter Decay 1 | . . . . . . . . . 1 . . . . . . . Damage (minor) 1 | . . . . . . . . . 1 . . . . . . . Siege Activations . | . . . . . . . . . . . . . . . . . Robots Corrupted . | . . . . . . . . . . . . . . . . . Combat Hostiles . | . . . . . . . . . . . . . . . . . Parts Fried 8 | . . . . . 5 . . . . 3 . . . . . . Impact Corruptions 7 | . . . . . 3 . . . . 4 . . . . . . Robots Melted 1 | . . . . . . . . . 1 . . . . . . . Combat Hostiles 1 | . . . . . . . . . 1 . . . . . . . Parts Melted 3 | . 1 . . . . . . . 2 . . . . . . . Heat Transferred 581 | . 100 . . . . . . . 481 . . . . . . . Parts Sabotaged . | . . . . . . . . . . . . . . . . . Parts Stolen . | . . . . . . . . . . . . . . . . . Parts Stripped . | . . . . . . . . . . . . . . . . . Power Chain Reactions 1 | . 1 . . . . . . . . . . . . . . . Missiles Intercepted . | . . . . . . . . . . . . . . . . . Alert | -11 -10 -10 -10 -9 -8 -7 -7 -7 -7 -7 -6 -5 -5 -5 -5 -5 ------- Run | Scr Mat Min Exi Min Mat Fac Was Fac Gar Fac Fac Fac Was Fac Gar Fac Peak Influence 1072 | 25 260 . . . 96 64 35 34 138 267 159 783 86 175 1072 848 Initial 562 | . 16 . . . . 43 . 24 23 72 35 73 56 60 . 562 Average 337 | 13 134 . . . 21 49 16 24 56 86 108 181 63 49 725 595 Maximum Alert Level 3 | . 1 . . . . . . . . 1 . 3 . . 3 3 Low Security (%) 57 | 100 77 100 . 100 100 100 100 100 100 99 100 77 100 100 6 . Level 1 3 | . 22 . . . . . . . . . . 1 . . 4 7 Level 2 18 | . . . . . . . . . . . . 11 . . 35 78 Level 3 20 | . . . . . . . . . . . . 9 . . 53 14 Level 4 . | . . . . . . . . . . . . . . . . . Level 5 . | . . . . . . . . . . . . . . . . . High Security . | . . . . . . . . . . . . . . . . . Max Security . | . . . . . . . . . . . . . . . . . Squads Dispatched 40 | . 3 . . . 1 . . . . 10 2 9 . 10 . 5 Investigation 16 | . 2 . . . . . . . . 5 2 4 . 3 . . Extermination 10 | . . . . . . . . . . 1 . 4 . 2 . 3 Reinforcement 7 | . 1 . . . 1 . . . . 2 . 1 . 2 . . Assault 4 | . . . . . . . . . . 2 . . . . . 2 Garrison 3 | . . . . . . . . . . . . . . 3 . . Intercept . | . . . . . . . . . . . . . . . . . Searches Triggered 1 | . . . . . . . . . . . . 1 . . . . Construction Impeded . | . . . . . . . . . . . . . . . . . Haulers Reinforced . | . . . . . . . . . . . . . . . . . Active Scanning Responses . | . . . . . . . . . . . . . . . . . Cargo Convoy Interrupts . | . . . . . . . . . . . . . . . . . Stealth | -11 -10 -10 -10 -9 -8 -7 -7 -7 -7 -7 -6 -5 -5 -5 -5 -5 --------- Run | Scr Mat Min Exi Min Mat Fac Was Fac Gar Fac Fac Fac Was Fac Gar Fac Distress Signals 9 | . 1 . . . 1 1 . . . . . 2 . 2 1 1 Communications Jammed . | . . . . . . . . . . . . . . . . . Distress Signals . | . . . . . . . . . . . . . . . . . Times Spotted 155 | . 18 6 . . 9 1 5 . 2 15 2 22 5 10 34 26 Peak Tracking Total 9 | . 4 3 . . 3 2 5 . 1 4 3 6 4 4 5 9 Tactical Retreats 31 | . 1 . . . 1 . 3 . . 5 1 9 1 5 3 2 Traps | -11 -10 -10 -10 -9 -8 -7 -7 -7 -7 -7 -6 -5 -5 -5 -5 -5 ------- Run | Scr Mat Min Exi Min Mat Fac Was Fac Gar Fac Fac Fac Was Fac Gar Fac Traps Triggered 24 | . 3 . . . . 1 . . 3 3 . 6 . 2 6 . Indirectly . | . . . . . . . . . . . . . . . . . Trap Hack Attempts . | . . . . . . . . . . . . . . . . . Triggered . | . . . . . . . . . . . . . . . . . Disarmed . | . . . . . . . . . . . . . . . . . Reprogrammed . | . . . . . . . . . . . . . . . . . Reused . | . . . . . . . . . . . . . . . . . Traps Extracted . | . . . . . . . . . . . . . . . . . Installed . | . . . . . . . . . . . . . . . . . Triggered . | . . . . . . . . . . . . . . . . . Machines | -11 -10 -10 -10 -9 -8 -7 -7 -7 -7 -7 -6 -5 -5 -5 -5 -5 ---------- Run | Scr Mat Min Exi Min Mat Fac Was Fac Gar Fac Fac Fac Was Fac Gar Fac Machines Disabled 26 | . . . . . . . . . 4 1 . . . 1 6 14 Max in Single Turn 2 | . . . . . . . . . 2 1 . . . . 1 1 Garrison Access 2 | . . . . . . . . . . 2 . . . . . . Garrison Relay 6 | . . . . . . . . . 1 . . . . . 5 . Phase Generator 1 | . . . . . . . . . 1 . . . . . . . Machines Sabotaged . | . . . . . . . . . . . . . . . . . Garrisons Compromised . | . . . . . . . . . . . . . . . . . Overloaded Fab Kills . | . . . . . . . . . . . . . . . . . Hacking | -11 -10 -10 -10 -9 -8 -7 -7 -7 -7 -7 -6 -5 -5 -5 -5 -5 --------- Run | Scr Mat Min Exi Min Mat Fac Was Fac Gar Fac Fac Fac Was Fac Gar Fac Machines Accessed 51 | . 5 1 1 . 2 1 . 1 . 8 4 14 . 11 . 3 Terminals 29 | . 5 . . . 2 1 . . . 3 2 8 . 6 . 2 Fabricators 8 | . . . . . . . . . . 1 . 4 . 3 . . Repair Stations 5 | . . . . . . . . . . 2 . 2 . 1 . . Recycling Units . | . . . . . . . . . . . . . . . . . Scanalyzers 3 | . . . . . . . . . . 2 . . . . . 1 Garrison Access 4 | . . . . . . . . 1 . . 2 . . 1 . . Total Hacks 179 | . 15 1 3 . 6 1 . 2 . 17 9 62 . 49 . 14 Successful 112 | . 7 1 3 . 5 . . 1 . 11 5 33 . 34 . 12 Failed 67 | . 8 . . . 1 1 . 1 . 6 4 29 . 15 . 2 Catastrophic 12 | . . . . . . 1 . . . 3 3 3 . 1 . 1 Database Lockouts . | . . . . . . . . . . . . . . . . . Manual 112 | . 7 . 1 . 5 1 . . . 10 7 53 . 23 . 5 Terminals 116 | . 15 . . . 6 1 . . . 7 5 49 . 25 . 8 Fabricators 26 | . . . . . . . . . . 1 . 8 . 17 . . Repair Stations 14 | . . . . . . . . . . 7 . 5 . 2 . . Recycling Units . | . . . . . . . . . . . . . . . . . Scanalyzers 8 | . . . . . . . . . . 2 . . . . . 6 Garrison Access 11 | . . . . . . . . 2 . . 4 . . 5 . . Terminal Hacks 38 | . 6 1 3 . 1 . . . . . 1 15 . 8 . 3 Record 3 | . . . 3 . . . . . . . . . . . . . Part Schematic 3 | . . . . . . . . . . . . 2 . 1 . . Robot Schematic 7 | . . . . . . . . . . . 1 6 . . . . Open Door 2 | . . 1 . . . . . . . . . . . 1 . . Branch Access Points 1 | . . . . . . . . . . . . 1 . . . . Emergency Access Points 1 | . 1 . . . . . . . . . . . . . . . Terminal Index 3 | . . . . . . . . . . . . 1 . 1 . 1 Fabricator Index 2 | . . . . . . . . . . . . 1 . 1 . . Alert Level 1 | . 1 . . . . . . . . . . . . . . . Unreport Threat 6 | . . . . . 1 . . . . . . 3 . . . 2 Locate Traps 1 | . 1 . . . . . . . . . . . . . . . Recall Investigation 1 | . . . . . . . . . . . . . . 1 . . Recall Extermination 3 | . . . . . . . . . . . . 1 . 2 . . Recall Reinforcements 1 | . . . . . . . . . . . . . . 1 . . Hauler Manifests 1 | . 1 . . . . . . . . . . . . . . . Zone Layout 2 | . 2 . . . . . . . . . . . . . . . Fabricator Hacks 16 | . . . . . . . . . . . . 4 . 12 . . Network Status 2 | . . . . . . . . . . . . 1 . 1 . . Load Schematic 8 | . . . . . . . . . . . . 2 . 6 . . Build 6 | . . . . . . . . . . . . 1 . 5 . . Repair Station Hacks 10 | . . . . . . . . . . 7 . 3 . . . . Scan Component 6 | . . . . . . . . . . 4 . 2 . . . . Repair 4 | . . . . . . . . . . 3 . 1 . . . . Recycling Unit Hacks . | . . . . . . . . . . . . . . . . . Scanalyzer 6 | . . . . . . . . . . . . . . . . 6 Insert Component 3 | . . . . . . . . . . . . . . . . 3 Analyze 3 | . . . . . . . . . . . . . . . . 3 Garrison Access Hacks 6 | . . . . . . . . 1 . . 2 . . 3 . . Unlock Access 2 | . . . . . . . . 1 . . . . . 1 . . Coupler Status 4 | . . . . . . . . . . . 2 . . 2 . . Unauthorized Hacks 36 | . 1 . . . 4 . . . . 4 2 11 . 11 . 3 Terminals 22 | . 1 . . . 4 . . . . 1 . 8 . 5 . 3 Track 4 | . . . . . 1 . . . . . . 2 . . . 1 Assimilate 2 | . . . . . 1 . . . . . . . . 1 . . Botnet 12 | . . . . . 1 . . . . 1 . 6 . 3 . 1 Operators 4 | . 1 . . . 1 . . . . . . . . 1 . 1 Fabricators 6 | . . . . . . . . . . 1 . 2 . 3 . . Prioritize 1 | . . . . . . . . . . . . . . 1 . . Recompile 5 | . . . . . . . . . . 1 . 2 . 2 . . Repair Stations 2 | . . . . . . . . . . . . 1 . 1 . . Mechanics 2 | . . . . . . . . . . . . 1 . 1 . . Recycling Units . | . . . . . . . . . . . . . . . . . Scanalyzers 2 | . . . . . . . . . . 2 . . . . . . Extract 2 | . . . . . . . . . . 2 . . . . . . Garrison Access 4 | . . . . . . . . . . . 2 . . 2 . . Reprogram 1 | . . . . . . . . . . . . . . 1 . . Watchers 1 | . . . . . . . . . . . . . . 1 . . Eject 2 | . . . . . . . . . . . 2 . . . . . Data Cores Recovered 1 | . . . . . . . . . . 1 . . . . . . Used 1 | . . . . . . . . . . 1 . . . . . . Hacking Detections 33 | . 4 . . . 2 1 . 1 . 4 4 11 . 4 . 2 Full Trace Events 4 | . 1 . . . . . . . . 1 . 2 . . . . Feedback Events . | . . . . . . . . . . . . . . . . . Feedback Blocked . | . . . . . . . . . . . . . . . . . Robot Schematics Acquired 7 | . . . . . . . . . . . 1 6 . . . . Robots Built 6 | . . . . . . . . . . . . . . 6 . . Authchips 4 | . . . . . . . . . . . . . . 4 . . Time 575 | . . . . . . . . . . . . . . 575 . . Total Robot Build Rating 33 | . . . . . . . . . . . . . . 33 . . Part Schematics Acquired 10 | . . . . . . . . . . 4 . 2 . 1 . 3 Parts Built 3 | . . . . . . . . . . . . 1 . 2 . . Authchips 1 | . . . . . . . . . . . . . . 1 . . Time 212 | . . . . . . . . . . . . 95 . 117 . . Total Part Build Rating 19 | . . . . . . . . . . . . 5 . 14 . . Parts Repaired 4 | . . . . . . . . . . 3 . 1 . . . . Time 171 | . . . . . . . . . . 110 . 61 . . . . Parts Recycled . | . . . . . . . . . . . . . . . . . Recycled Matter . | . . . . . . . . . . . . . . . . . Retrieved Matter . | . . . . . . . . . . . . . . . . . Retrieved Components . | . . . . . . . . . . . . . . . . . Parts Scanalyzed 3 | . . . . . . . . . . . . . . . . 3 Part Schematics Acquired 3 | . . . . . . . . . . . . . . . . 3 Parts Damaged 1 | . . . . . . . . . . . . . . . . 1 Bothacking | -11 -10 -10 -10 -9 -8 -7 -7 -7 -7 -7 -6 -5 -5 -5 -5 -5 ------------ Run | Scr Mat Min Exi Min Mat Fac Was Fac Gar Fac Fac Fac Was Fac Gar Fac Used RIF Installer 2 | . . . . . . . . . 1 . . . . . 1 . Coupler Efficiency 1 | . . . . . . . . . . . . . . . 1 . Robots Hacked 22 | . . . . . . . . . . . 1 2 . . 16 3 Non-combat 4 | . . . . . . . . . . . 1 1 . . . 2 Combat 18 | . . . . . . . . . . . . 1 . . 16 1 Robot Hacks Applied 26 | . . . . . . . . . . . 1 3 . . 18 4 parse_system 1 | . . . . . . . . . . . . . . . 1 . find_fabricator 1 | . . . . . . . . . . . . 1 . . . . purge_threat 2 | . . . . . . . . . . . . . . . . 2 link_fov 1 | . . . . . . . . . . . . . . . 1 . disable_weapons 3 | . . . . . . . . . . . . . . . 3 . overwrite_iff 6 | . . . . . . . . . . . . . . . 6 . streamctrl_high 1 | . . . . . . . . . . . . . . . 1 . formatsys_low 3 | . . . . . . . . . . . 1 1 . . . 1 formatsys_high 8 | . . . . . . . . . . . . 1 . . 6 1 Relay Couplers Released 29 | . . . . . . . . . 3 2 7 . . . 17 . Ejected 7 | . . . . . . . . . . . 7 . . . . . Machine Destruction 22 | . . . . . . . . . 3 2 . . . . 17 . Attached 16 | . . . . . . . . . . 3 3 . . . 7 3 Fabnet Peak Effective % . | . . . . . . . . . . . . . . . . . Robots Rewired 6 | . . . . . . . . . . . . . . . 6 . Allies Hacked 3 | . . . . . . . . . . . . . . . . 3 Hacks Repelled . | . . . . . . . . . . . . . . . . . Allies | -11 -10 -10 -10 -9 -8 -7 -7 -7 -7 -7 -6 -5 -5 -5 -5 -5 -------- Run | Scr Mat Min Exi Min Mat Fac Was Fac Gar Fac Fac Fac Was Fac Gar Fac Total Allies 34 | . . . . . 1 . . . . . 1 2 . 9 19 2 Largest Group 15 | . . . . . 1 . . . . . 1 2 . 6 14 15 Highest-Rated Group 563 | . . . . . 10 . . . . . 23 76 . 322 529 563 Highest-Rated Ally 100 | . . . . . 10 . . . . . 23 49 . 93 100 100 Total Orders 222 | . . . . . . . . . 1 4 1 24 . 6 154 32 STAY 145 | . . . . . . . . . . . 1 16 . 4 112 12 FOLLOW 44 | . . . . . . . . . . . . . . 2 28 14 AID 5 | . . . . . . . . . . . . . . . 5 . DROP 6 | . . . . . . . . . . . . 3 . . . 3 PICKUP 17 | . . . . . . . . . . . . 5 . . 9 3 EXPLORE 5 | . . . . . . . . . 1 4 . . . . . . Ally Attacks 173 | . . . . . . . . . 3 12 . . . 12 96 50 Total Damage 5731 | . . . . . . . . . . . . . . 502 2881 2348 Kills 43 | . . . . . . . . . . . . . . 2 24 17 Allies Corrupted . | . . . . . . . . . . . . . . . . . Allies Melted 1 | . . . . . . . . . . . . . . . 1 . Intel | -11 -10 -10 -10 -9 -8 -7 -7 -7 -7 -7 -6 -5 -5 -5 -5 -5 ------- Run | Scr Mat Min Exi Min Mat Fac Was Fac Gar Fac Fac Fac Was Fac Gar Fac Robot Analysis Total . | . . . . . . . . . . . . . . . . . Derelict Logs Recovered 1 | . . . . 1 . . . . . . . . . . . . Drone Launches 17 | . . . . . . . . . 3 14 . . . . . . Drone Recoveries 1 | . . . . . . . . . . 1 . . . . . . Exploration | -11 -10 -10 -10 -9 -8 -7 -7 -7 -7 -7 -6 -5 -5 -5 -5 -5 ------------- Run | Scr Mat Min Exi Min Mat Fac Was Fac Gar Fac Fac Fac Was Fac Gar Fac Turns Passed 16679 | 306 828 189 396 288 1523 412 331 53 454 904 203 2356 49 1761 5619 1007 Spaces Moved 16904 | 126 535 154 352 246 282 200 135 43 243 1249 511 3425 110 3053 4723 1517 Core 79 | 3 . . . . . . . . . . . 1 . . 75 . Treads 231 | 119 108 . . . . . . . . 4 . . . . . . Legs 3133 | . . . . . . . . . . . . . . . 3133 . Wheels 2106 | 4 427 154 352 246 282 200 135 43 243 20 . . . . . . Hover 190 | . . . . . . . . . . . . . . . . 190 Flight 11165 | . . . . . . . . . . 1225 511 3424 110 3053 1515 1327 Fastest Speed 32 | 50 95 110 110 110 110 185 125 125 125 34 34 34 37 37 32 32 Average Speed 66 | 155 115 110 110 110 156 185 128 125 125 41 34 36 37 37 93 47 Slowest Speed 200 | 160 160 110 110 110 185 185 185 125 125 160 34 150 37 37 200 125 Overloaded Moves . | . . . . . . . . . . . . . . . . . Propulsion Burnouts . | . . . . . . . . . . . . . . . . . Robots Hopped 38 | . . . . . . . . . . 4 3 22 . 7 . 2 Cave-ins Triggered 1 | . . . . . . . . . . . . 1 . . . . Exploration Rate (%) 41 | 7 73 36 66 45 23 7 93 2 53 41 12 41 75 29 97 13 Regions Visited 16 Branch Regions 3 Pre-discovered Areas 1 | . . . . 1 . . . . . . . . . . . . Known Exits Taken 2 | . . . . . . . . 1 . . . . . 1 . . Unknown Exits Taken 8 | 1 1 1 1 1 1 . . . . 1 1 . . . . . Scrap Searched . | . . . . . . . . . . . . . . . . . Spaces Dug 195 | . . . . . 9 6 13 . 3 11 4 33 . 45 70 1 Terrain Destroyed 223 | . 5 . . . 9 6 13 . 10 11 4 33 . 45 70 17 Melee 195 | . . . . . 9 6 13 . 3 11 4 33 . 45 70 1 Projectile . | . . . . . . . . . . . . . . . . . AOE 28 | . 5 . . . . . . . 7 . . . . . . 16 Terrain Rammed 1 | . . . . . . . . . . . . . . . 1 . Walls Destroyed . | . . . . . . . . . . . . . . . . . Machines Disabled . | . . . . . . . . . . . . . . . . . Actions | -11 -10 -10 -10 -9 -8 -7 -7 -7 -7 -7 -6 -5 -5 -5 -5 -5 --------- Run | Scr Mat Min Exi Min Mat Fac Was Fac Gar Fac Fac Fac Was Fac Gar Fac Total 21612 | 205 685 164 361 259 1331 231 268 42 334 1603 529 4413 117 3606 5686 1778 Wait 3794 | 42 95 3 . 12 1015 22 117 . 24 274 8 875 8 495 584 220 Move 16815 | 125 534 153 351 245 281 200 134 42 241 1240 504 3383 109 3039 4721 1513 Hop 35 | . . . . . . . . . . 4 3 20 . 6 . 2 Pick Up 73 | 3 15 1 1 . 5 1 . . 3 6 1 12 . 2 21 2 Fast Attach 91 | 7 1 . 4 . 3 1 2 . . 15 4 17 . 9 22 6 Attach 37 | . 4 . . . 2 . . . 2 6 . 11 . 3 8 1 Detach 37 | . . . 1 . 1 . . . 1 7 1 10 . 3 12 1 Swap 32 | 1 2 . . . 3 . 2 . 4 2 . 1 . . 10 7 Drop 81 | . 4 2 4 . 2 . . . 1 12 2 14 . 3 34 3 Fire 142 | 27 30 5 . 2 8 . . . 16 . . 1 . . 40 13 Melee 331 | . . . . . 11 7 13 . 18 19 5 49 . 46 155 8 Ram 3 | . . . . . . . . . . . . . . . 3 . Kick . | . . . . . . . . . . . . . . . . . Crush . | . . . . . . . . . . . . . . . . . Escape Stasis 106 | . . . . . . . . . 24 18 . 18 . . 46 . Rewire 35 | . . . . . . . . . . . 1 2 . . 30 2 Trap . | . . . . . . . . . . . . . . . . . Miscellaneous . | . . . . . . . . . . . . . . . . . Route ------- -11/Scrapyard -10/Materials (discovered 3 exits: [*Mat x2] / *Min) -10/Mines -10/Exiles (discovered 2 exits: *Min x2) -9/Mines -8/Materials -7/Factory -7/Waste -7/Factory -7/Garrison -7/Factory (discovered 2 exits: *Fac x2) -6/Factory -5/Factory (discovered 5 exits: [*Fac] / *Upp x2 / Ext x2) -5/Waste -5/Factory (discovered 5 exits: [*Fac x2] / *Upp / *Ext / Gar) -5/Garrison (discovered 3 exits: *Fac x3) -5/Factory History --------- Turn | Location | Event 10 | -11/Scrapyard | Discovered new exit (range 15) 307 | -11/Scrapyard | Entered Materials 308 | -10/Materials | Build established: Mutant 621 | -10/Materials | Discovered new exit (range 7) 704 | -10/Materials | Discovered new exit (range 16) 787 | -10/Materials | Discovered new exit (range 16) 1135 | -10/Materials | Entered Mines 1163 | -10/Mines | Assembled infested the area 1168 | -10/Mines | Assisted by a Guerilla fighting off Assembled 1232 | -10/Mines | Found the Drone Emporium 1236 | -10/Mines | Found Prototype Device 1318 | -10/Mines | Deemed a non-threat by the Exiles lab entrance 1319 | -10/Mines | Discovered new exit (range 5) 1324 | -10/Mines | Entered Exiles 1340 | -10/Exiles | Discovered new exit (range 15) 1354 | -10/Exiles | Met 8R-AWN 1373 | -10/Exiles | Met EX-HEX 1404 | -10/Exiles | Met EX-BIN 1417 | -10/Exiles | Aligned with FarCom system 1418 | -10/Exiles | Given EX-Vault access code 1443 | -10/Exiles | Opened EX-Vault 1482 | -10/Exiles | Found Prototype Device 1482 | -10/Exiles | Identified Chronowheel 1482 | -10/Exiles | Activated Chronowheel 1499 | -10/Exiles | Found Prototype Processor 1499 | -10/Exiles | Identified Modified TNC 1544 | -10/Exiles | Warned to stay clear of 0b10 Research branches 1630 | -10/Exiles | Met EX-DEC 1710 | -10/Exiles | Discovered new exit (range 11) 1720 | -10/Exiles | Left Exiles lab with Modified TNC 1720 | -10/Exiles | Entered Mines 1720 | -9/Mines | Discovered new exit (range 9) 1933 | -9/Mines | Learned location of Zion (-6) 2008 | -9/Mines | Entered Materials 2008 | -8/Materials | Evolved 4 slots: Utility x4 2155 | -8/Materials | Identified Bomb Drone Bay 2748 | -8/Materials | Build established: Assassin 3525 | -8/Materials | Discovered new exit (range 3) 3531 | -8/Materials | Entered Factory 3531 | -7/Factory | Evolved 2 slots: Utility x2 3867 | -7/Factory | Discovered new exit (range 12) 3943 | -7/Factory | Sucked down chute 3943 | -7/Factory | Entered Waste 3958 | -7/Waste | EMP discharged 4011 | -7/Waste | Spotted C-40 Crusher 4027 | -7/Waste | Spotted C-40 Crusher 4058 | -7/Waste | EMP discharged 4058 | -7/Waste | System corruption reached 10% 4144 | -7/Waste | Spotted C-40 Crusher 4158 | -7/Waste | EMP discharged 4182 | -7/Waste | Spotted C-40 Crusher 4224 | -7/Waste | Spotted C-40 Crusher 4258 | -7/Waste | EMP discharged 4258 | -7/Waste | System corruption reached 30% 4263 | -7/Waste | Discovered new exit (range 10) 4274 | -7/Waste | Entered Factory 4281 | -7/Factory | Build established: Hacker-Assassin 4326 | -7/Factory | Identified exit to Garrison 4327 | -7/Factory | Entered Garrison 4334 | -7/Garrison | Installed Relay Interface Framework 4474 | -7/Garrison | Triggered checkpoint 4536 | -7/Garrison | Garrison Relay disabled 4641 | -7/Garrison | Triggered checkpoint 4770 | -7/Garrison | Phase Generator disabled 4771 | -7/Garrison | Discovered new exit (range 7) 4781 | -7/Garrison | Entered Factory 4886 | -7/Factory | Discovered new exit (range 52) 5075 | -7/Factory | Repaired Xenon Bombardment Thruster 5120 | -7/Factory | Build established: Hacker-Mutant 5400 | -7/Factory | Repaired Mic. Nuclear Core 5475 | -7/Factory | Repaired Xenon Bombardment Thruster 5485 | -7/Factory | Discovered new exit (range 13) 5685 | -7/Factory | Entered another Factory area 5685 | -6/Factory | Evolved 2 slots: Utility x2 5756 | -6/Factory | Discovered new exit (range 11) 5888 | -6/Factory | Entered another Factory area 5888 | -5/Factory | Evolved 2 slots: Utility x2 6647 | -5/Factory | Repaired Broken Mic. Nuclear Core 6805 | -5/Factory | Crushed by falling debris 7577 | -5/Factory | Identified exit to Upper Caves 7577 | -5/Factory | Identified exit to Extension 7758 | -5/Factory | Lost 3 parts (1n2u) 7988 | -5/Factory | Search patrols dispatched 8195 | -5/Factory | Fabricated Imp. Hacking Suite? 8230 | -5/Factory | Build established: Wizard-Ninja 8232 | -5/Factory | Discovered new exit (range 10) 8244 | -5/Factory | Sucked down chute 8244 | -5/Factory | Entered Waste 8255 | -5/Waste | Spotted C-40 Crusher 8256 | -5/Waste | Spotted C-40 Crusher 8274 | -5/Waste | Spotted C-40 Crusher 8277 | -5/Waste | Spotted C-40 Crusher 8285 | -5/Waste | Spotted C-40 Crusher 8288 | -5/Waste | Discovered new exit (range 14) 8293 | -5/Waste | Entered Factory 8308 | -5/Factory | Discovered exit to Upper Caves (range 11) 8322 | -5/Factory | Discovered new exit (range 18) 8597 | -5/Factory | Fabricated Adv. Trap Scanner? 8619 | -5/Factory | Discovered new exit (range 16) 8934 | -5/Factory | Build established: Wizard-Scout 8949 | -5/Factory | Discovered exit to Extension (range 10) 9102 | -5/Factory | Identified exit to Garrison 9363 | -5/Factory | Fabricated H-66 Slayer (x2) 9480 | -5/Factory | Garrison activated, responded to threat 9550 | -5/Factory | Fabricated A-27 Freighter? 9694 | -5/Factory | Fabricated H-66 Slayer? 9981 | -5/Factory | Fabricated I-47 Archangel (x1) 10054 | -5/Factory | Entered Garrison 10054 | -5/Garrison | Accompanied by 6 allies 10143 | -5/Garrison | Garrison Relay disabled 10320 | -5/Garrison | Triggered checkpoint 10403 | -5/Garrison | Triggered checkpoint 10408 | -5/Garrison | Triggered checkpoint 10586 | -5/Garrison | Garrison Relay disabled 11014 | -5/Garrison | Build established: Wizard-Mutant 11864 | -5/Garrison | Triggered checkpoint 11937 | -5/Garrison | Garrison Relay disabled 12244 | -5/Garrison | Discovered new exit (range 19) 12523 | -5/Garrison | Triggered checkpoint 12634 | -5/Garrison | Triggered checkpoint 12740 | -5/Garrison | Triggered checkpoint 12820 | -5/Garrison | Build established: Hacker-Mutant 12832 | -5/Garrison | Garrison Relay disabled 12916 | -5/Garrison | Discovered new exit (range 13) 13060 | -5/Garrison | Triggered checkpoint 13063 | -5/Garrison | Discovered new exit (range 18) 13098 | -5/Garrison | Garrison Relay disabled 13307 | -5/Garrison | Triggered checkpoint 13332 | -5/Garrison | Expanded RIF knowledge: Coupler Efficiency 13823 | -5/Garrison | Build established: Commander-Mutant 15153 | -5/Garrison | Found Gamma Bomb Array 15490 | -5/Garrison | Identified exit to Factory 15673 | -5/Garrison | Entered Factory 15673 | -5/Factory | Accompanied by 14 allies 15738 | -5/Factory | Build established: Commander-Sprinter 15796 | -5/Factory | Spotted B-75 Beast 16049 | -5/Factory | Build established: Commander-Mutant 16273 | -5/Factory | First assault squad dispatched 16364 | -5/Factory | Core integrity fell below 50% 16680 | -5/Factory | Self-destructed Last Messages --------------- 16630_ G-67 Veteran unfolds itself. 16630_ G-50 Soldier unfolds itself. 16630_ L-41 Fighter unfolds itself. 16630_ I-47 Archangel unfolds itself. 16653_ System corrupted: Energy discharge (-57). 16656_ ALERT: Cargo convoy en route, clear transfer corridor. 16659_ Sneak attack on K-01 Serf. 16659_ K-01 Serf destroyed. 16660_ Extracted 5 matter. 16664_ Sneak attack on K-01 Serf. 16664_ K-01 Serf destroyed. 16667_ U-05 Engineer lays Concrete. 16667_ Sneak attack on R-10 Processor. 16667_ R-10 Processor destroyed. 16669_ U-05 Engineer lays Concrete. 16672_ System corrupted: Matter fused (-6). 16672_ U-05 Engineer lays Concrete. 16673_ ALERT: Rogue bot located, Programmers report to Factory Zone 1J. 16673_ Acquired 6 matter. 16674_ U-05 Engineer lays Concrete. Map ----- +----------------------------------------------------+ | ??????# # | | ??????# + % | | ??????# # | | ??????# # | | ??????# #+##+####################+### | | ??????# # #?????# % # | | ??????# # "" #?????# # | | ??????###########+## "F #?????# # | | ????????????????# ## "" ! ####### + | | ????????????????# ## "" + + # | | ????????????????# ## ####### """" """" # | | ????????????????# ## #?????# """" """" ### | | ###?????????????# ## #?##### """" """" #?? | | #?????????????# ## #?# + """" """" #?? | | #?????????????# ##+##+#####?# ### """" """" #?? | | #?????????????# #######+### """" """" #?? | | #?????????????# # ! ## #?? | | #?????????????# """ # ###############?? | | #?????????????# """ + # ######## | | #??????????#### """ # # """ + | | ################# #####+#### """ # ### | | + !%* %%!=|= !% #???# #??# """ ! # #?? | | #########%!!! *!% #???# #??# # #?? | | #????# ##|== !==!%##### #??# """ # #?? | | #????# #!* %%% % A#??# """ # #?? | | #????## # % %!*% @ ##?# """ # #?? | | !! ####### # ;###! # ^#?? | | !! + u ;#########"# #?? | | !! ######################; l i #?? | | #???????##???????????#; l g h #?? | | #????????????????????######################?? | | #???????????????????????????????????????????? | | ######???????????????????????????????????????????? | | | | | | | | | | | | | | | | | | | | | | | | | | | | | | | | | | | +----------------------------------------------------+ Best States ------------- Heat Dissipation 78 Energy Generation 15 Energy Capacity 250 Matter Stores 450 Matter Capacity 450 Sight Range 22 Terrain Scan Range 20 Terrain Scan Density 310 ECM Strength 1 Armor Coverage 225 Resistance: TH 30 Evasion (%) 63 Melee Accuracy 6 Core Analysis 6 Armor Integrity Analysis 30 Recoil Reduction 1 Offensive Hacking 34 Defensive Hacking 42 Relay Coupler Types 4 Relay Coupler Value 69 Authchip Count 3 Item Schematics ----------------- Imp. Spread Laser | -7/Factory | Extracted Lrg. Storage Unit | -7/Factory | Extracted Imp. Melee Analysis Suite | -7/Factory | Extracted Deuterium Engine | -7/Factory | Extracted Adv. System Shield | -5/Factory | Hacked Imp. Hacking Suite | -5/Factory | Hacked Adv. Trap Scanner | -5/Factory | Hacked Adv. Remote Datajack | -5/Factory | Scanalyzed Adv. Terrain Scanner | -5/Factory | Scanalyzed Imp. Grenade Launcher | -5/Factory | Scanalyzed Robot Schematics ------------------ A-02 Transporter | -6/Factory | Hacked P-70 Sage | -5/Factory | Hacked I-47 Archangel | -5/Factory | Hacked G-50 Soldier | -5/Factory | Hacked H-66 Slayer | -5/Factory | Hacked Y-45 Defender | -5/Factory | Hacked A-27 Freighter | -5/Factory | Hacked Fabricated ------------ Imp. Hacking Suite | x1 | -5/Factory Adv. Trap Scanner | x2 | -5/Factory | Authchip H-66 Slayer | x2 | -5/Factory | Authchip A-27 Freighter | x1 | -5/Factory | Authchip H-66 Slayer | x2 | -5/Factory | Authchip I-47 Archangel | x1 | -5/Factory | Authchip Alien Tech Used ----------------- None Achievements -------------- Release The Drones! Challenges ------------ None Game ------ Seed ShadeAntimatterTearclaws Manual? 0 Play Time 04:23:21 Cumulative 44.0 hours Start 2022.05.10 @ 21:19:21 End 2022.05.12 @ 07:32:11 Sessions 7 Manual Loads 0 Difficulty Rogue Special Mode None Game No. 14 Rogue 13 Adventurer 0 Explorer 1 Win Type - Total 0 Types 0/0/0/0/0/0/0/0/0 Lore% 17 Gallery% 31 Achievement% 33 Wizard Run 0 Options --------- ASCII 0 Keyboard 0 Movement Numpad Keybinds 0 Fullscreen 1 Font 18/SmallcapsGlow Map View 76x50 Tactical HUD 1 Map Filters NONE Filters NONE Steam 1 RUN: 22794448-4a75-4951-80d8-cf71ac4f3f6d